[Event "FIDE Chesscom Grand Swiss 2019"]
[Site "Douglas-Isle of Man"]
[Date "2019.10.13"]
[Round "4.1"]
[White "Huschenbeth, Niclas"]
[Black "Shankland, Sam"]
[Result "1/2-1/2"]
[ECO "C78"]
[WhiteElo "2624"]
[BlackElo "2705"]
[Annotator "RC"]
[PlyCount "64"]
[EventDate "2019.10.10"]
[EventType "swiss"]
[EventCountry "GBR"]
[SourceTitle "playchess.com"]
[Source "ChessBase"]
[SourceQuality "1"]
[TimeControl "40/6000+30:20/3000+30:900+30"]

1. e4 {[%emt 0:00:00]} e5 {[%emt 0:00:00]} 2. Nf3 {[%emt 0:00:00]} Nc6 {[%emt 0:00:00]} 3. Bb5 {[%emt 0:00:00]} a6 {[%emt 0:00:00]} 4. Ba4 {[%emt 0:00:00]} Nf6 {[%emt 0:00:00]} 5. O-O {[%emt 0:00:00]} Bc5 {[%emt 0:00:02]} 6. c3 {[%emt 0:00:13]} b5 {[%emt 0:00:04]} 7. Bb3 {[%emt 0:00:14]} d6 {[%emt 0:00:06]} 8. a4 {[%emt 0:00:32]} Bb7 {[%emt 0:00:21]} 9. d4 {[%emt 0:01:44]} Bb6 {[%emt 0:00:05]} 10. Re1 {[%emt 0:00:34]} O-O {[%emt 0:00:05]} 11. Bg5 {[%emt 0:04:46]} h6 {[%emt 0:00:08]} 12. Bh4 {[%emt 0:00:30]} exd4 {[%emt 0:00:07]} 13. cxd4 {[%emt 0:00:15]} g5 {[%emt 0:00:03]} 14. Nxg5 {[%emt 0:00:55]} hxg5 {[%emt 0:00:04]} 15. Bxg5 {[%emt 0:00:04]} Nxd4 {[%emt 0:00:02]} 16. Bd5 {[%emt 0:01:53]} Ne6 {[%emt 0:00:07]} 17. Bh4 {[%emt 0:16:06]} Bxd5 {[%emt 0:00:08]} 18. exd5 {[%emt 0:00:03]} Ng7 {[%emt 0:00:04]} 19. Qf3 {[%emt 0:19:31]} Re8 {[%emt 0:00:15]} 20. Nc3 {[%emt 0:00:33]} Rxe1+ {[%emt 0:01:12]} 21. Rxe1 {[%emt 0:00:04]} Bd4 {[%emt 0:00:04]} 22. Ne4 {[%emt 0:15:54]} Nge8 {[%emt 0:00:06]} 23. h3 {[%emt 0:05:30]} Rb8 {[%emt 0:00:08]} 24. Nxf6+ {[%emt 0:01:48]} Bxf6 {[%emt 0:01:09]} 25. Rxe8+ {[%emt 0:00:03]} Qxe8 {[%emt 0:00:04]} 26. Bxf6 {[%emt 0:00:04]} Qe1+ {[%emt 0:00:05]} 27. Kh2 {[%emt 0:00:03]} Qb1 {[%emt 0:00:04]} 28. axb5 {[%emt 0:20:07]} axb5 {[%emt 0:00:23]} 29. Qg4+ {[%emt 0:02:21]} Qg6 {[%emt 0:00:06]} 30. Qh4 {[%emt 0:00:02]} Qh7 {[%emt 0:00:08]} 31. Qg5+ {[%emt 0:00:32]} Qg6 {[%emt 0:00:07]} 32. Qh4 {[%emt 0:00:04]} Qh7 {[%emt 0:00:03]} 1/2-1/2

[Event "FIDE Chesscom Grand Swiss 2019"]
[Site "Douglas-Isle of Man"]
[Date "2019.10.13"]
[Round "4.2"]
[White "Alekseenko, Kirill"]
[Black "Grischuk, Alexander"]
[Result "1/2-1/2"]
[ECO "C54"]
[WhiteElo "2674"]
[BlackElo "2759"]
[Annotator "ChessBase"]
[PlyCount "60"]
[EventDate "2019.10.10"]
[EventType "swiss"]
[EventCountry "GBR"]
[SourceTitle "playchess.com"]
[Source "ChessBase"]
[SourceQuality "1"]
[TimeControl "40/6000+30:20/3000+30:900+30"]

1. e4 {[%emt 0:00:00]} e5 {[%emt 0:00:00]} 2. Nf3 {[%emt 0:00:04]} Nc6 {[%emt 0:00:00]} 3. Bc4 {[%emt 0:00:42]} Bc5 {[%emt 0:00:00]} 4. c3 {[%emt 0:00:56]} Nf6 {[%emt 0:00:05]} 5. d3 {[%emt 0:00:07]} d6 {[%emt 0:00:17]} 6. O-O {[%emt 0:00:58]} a6 {[%emt 0:00:37]} 7. a4 {[%emt 0:00:14]} Ba7 {[%emt 0:00:30]} 8. a5 {[%emt 0:00:10]} O-O {[%emt 0:02:38]} 9. h3 {[%emt 0:01:26]} h6 {[%emt 0:05:50]} 10. Be3 {[%emt 0:00:22]} Bxe3 {[%emt 0:22:39]} 11. fxe3 {[%emt 0:00:40]} Qe7 {[%emt 0:04:14]} 12. Qb3 {[%emt 0:23:13]} Rb8 {[%emt 0:13:52]} 13. Nbd2 {[%emt 0:01:14]} Be6 {[%emt 0:02:34]} 14. Bxe6 {[%emt 0:07:43]} fxe6 {[%emt 0:01:35]} 15. d4 {[%emt 0:01:40]} Kh7 {[%emt 0:04:56]} 16. Qa2 {[%emt 0:02:42]} g5 {[%emt 0:08:57]} 17. d5 {[%emt 0:12:12]} exd5 {[%emt 0:03:09]} 18. exd5 {[%emt 0:00:14]} e4 {[%emt 0:00:25]} 19. Nxg5+ {[%emt 0:20:24]} hxg5 {[%emt 0:01:52]} 20. dxc6 {[%emt 0:00:08]} bxc6 {[%emt 0:05:10]} 21. Qc4 {[%emt 0:00:53]} Rxb2 {[%emt 0:20:01]} 22. Nxe4 {[%emt 0:00:40]} Nxe4 {[%emt 0:00:10]} 23. Rxf8 {[%emt 0:00:11]} d5 {[%emt 0:00:02]} 24. Qf1 {[%emt 0:01:15]} Kg7 {[%emt 0:00:04]} 25. Qc1 {[%emt 0:13:52]} Re2 {[%emt 0:01:09]} 26. Rf1 {[%emt 0:04:59]} Qe5 {[%emt 0:03:41]} 27. Qa3 {[%emt 0:00:26]} Rxg2+ {[%emt 0:00:47]} 28. Kxg2 {[%emt 0:00:06]} Qg3+ {[%emt 0:00:04]} 29. Kh1 {[%emt 0:00:04]} Qxh3+ {[%emt 0:00:04]} 30. Kg1 {[%emt 0:00:04]} Qg3+ {[%emt 0:00:11]} 1/2-1/2

[Event "FIDE Chesscom Grand Swiss 2019"]
[Site "Douglas-Isle of Man"]
[Date "2019.10.13"]
[Round "4.3"]
[White "Van Foreest, Jorden"]
[Black "Vallejo Pons, Francisco"]
[Result "1/2-1/2"]
[ECO "C18"]
[WhiteElo "2621"]
[BlackElo "2694"]
[Annotator "RC"]
[PlyCount "55"]
[EventDate "2019.10.10"]
[EventType "swiss"]
[EventCountry "GBR"]
[SourceTitle "playchess.com"]
[Source "ChessBase"]
[SourceQuality "1"]
[TimeControl "40/6000+30:20/3000+30:900+30"]

1. e4 {[%emt 0:00:00]} e6 {[%emt 0:00:00]} 2. d4 {[%emt 0:00:00]} d5 {[%emt 0:00:00]} 3. Nc3 {[%emt 0:00:00]} Bb4 {[%emt 0:00:00]} 4. e5 {[%emt 0:00:08]} c5 {[%emt 0:00:03]} 5. a3 {[%emt 0:00:08]} Bxc3+ {[%emt 0:00:09]} 6. bxc3 {[%emt 0:00:06]} Qa5 {[%emt 0:00:04]} 7. Bd2 {[%emt 0:00:15]} Qa4 {[%emt 0:00:04]} 8. Qg4 {[%emt 0:00:54]} Kf8 {[%emt 0:00:58]} 9. h4 {[%emt 0:00:17]} Ne7 {[%emt 0:01:01]} 10. h5 {[%emt 0:01:44]} h6 {[%emt 0:00:16]} 11. Qd1 {[%emt 0:00:25]} b6 {[%emt 0:07:04]} 12. Nf3 {[%emt 0:04:06]} Ba6 {[%emt 0:04:35]} 13. dxc5 {[%emt 0:02:21]} Bxf1 {[%emt 0:15:09]} 14. Kxf1 {[%emt 0:00:27]} bxc5 {[%emt 0:05:02]} 15. Rh4 {[%emt 0:00:12]} Qc6 {[%emt 0:13:40]} 16. c4 {[%emt 0:05:49]} Nd7 {[%emt 0:03:08]} 17. Qe2 {[%emt 0:03:53]} Rb8 {[%emt 0:07:19]} 18. a4 {[%emt 0:16:35]} Qa6 {[%emt 0:07:24]} 19. a5 {[%emt 0:05:30]} dxc4 {[%emt 0:01:40]} 20. Rxc4 {[%emt 0:07:30]} Nd5 {[%emt 0:01:47]} 21. Rd1 {[%emt 0:01:02]} Rb2 {[%emt 0:05:59]} 22. Rc1 {[%emt 0:12:14]} Ke7 {[%emt 0:09:40]} 23. Rg4 {[%emt 0:01:01]} Qxe2+ {[%emt 0:00:21]} 24. Kxe2 {[%emt 0:00:05]} Rh7 {[%emt 0:07:35]} 25. Rc4 {[%emt 0:06:27]} Rh8 {[%emt 0:00:00]} 26. Rg4 {[%emt 0:00:41]} Rh7 {[%emt 0:00:00]} 27. Kd3 {[%emt 0:07:13]} Rb8 {[%emt 0:00:49]} 28. Ke2 {[%emt 0:05:14]} 1/2-1/2

[Event "FIDE Chesscom Grand Swiss 2019"]
[Site "Douglas-Isle of Man"]
[Date "2019.10.13"]
[Round "4.8"]
[White "Leko, Peter"]
[Black "Nihal Sarin"]
[Result "1-0"]
[ECO "C84"]
[WhiteElo "2670"]
[BlackElo "2610"]
[Annotator "RC"]
[PlyCount "75"]
[EventDate "2019.10.10"]
[EventType "swiss"]
[EventCountry "GBR"]
[SourceTitle "playchess.com"]
[Source "ChessBase"]
[SourceQuality "1"]
[TimeControl "40/6000+30:20/3000+30:900+30"]

1. e4 {[%emt 0:01:19]} e5 {[%emt 0:00:00]} 2. Nf3 {[%emt 0:00:17]} Nc6 {[%emt 0:00:01]} 3. Bb5 {[%emt 0:00:11]} a6 {[%emt 0:00:16]} 4. Ba4 {[%emt 0:00:07]} Nf6 {[%emt 0:00:06]} 5. O-O {[%emt 0:00:07]} Be7 {[%emt 0:00:34]} 6. d3 {[%emt 0:02:15]} b5 {[%emt 0:00:38]} 7. Bb3 {[%emt 0:00:07]} d6 {[%emt 0:01:10]} 8. Bd2 {[%emt 0:03:31]} O-O {[%emt 0:12:41]} 9. h3 {[%emt 0:05:07]} h6 {[%emt 0:05:55]} 10. Re1 {[%emt 0:11:53]} Re8 {[%emt 0:25:14]} 11. a3 {[%emt 0:05:05]} Bf8 {[%emt 0:08:40]} 12. Nc3 {[%emt 0:06:15]} Na5 {[%emt 0:03:05]} 13. Ba2 {[%emt 0:00:47]} Be6 {[%emt 0:00:26]} 14. Bxe6 {[%emt 0:07:55]} Rxe6 {[%emt 0:03:47]} 15. Nd5 {[%emt 0:00:15]} Nb7 {[%emt 0:15:15]} 16. c4 {[%emt 0:04:06]} c6 {[%emt 0:04:15]} 17. Nxf6+ {[%emt 0:00:17]} Rxf6 {[%emt 0:01:21]} 18. b4 {[%emt 0:00:33]} Qd7 {[%emt 0:02:23]} 19. a4 {[%emt 0:05:48]} bxc4 {[%emt 0:04:50]} 20. dxc4 {[%emt 0:00:06]} Re8 {[%emt 0:00:08]} 21. Bc3 {[%emt 0:16:53]} Qc8 {[%emt 0:02:36]} 22. Qd3 {[%emt 0:10:54]} Nd8 {[%emt 0:01:29]} 23. Bd2 {[%emt 0:01:32]} Ne6 {[%emt 0:01:13]} 24. Rab1 {[%emt 0:02:19]} Be7 {[%emt 0:01:00]} 25. Kh2 {[%emt 0:04:01]} Bd8 {[%emt 0:03:13]} 26. a5 {[%emt 0:03:34]} Rg6 {[%emt 0:03:46]} 27. Ra1 {[%emt 0:04:25]} Rf8 {[%emt 0:01:26]} 28. Be3 {[%emt 0:01:25]} Re8 {[%emt 0:06:39]} 29. b5 {[%emt 0:04:24]} Qb7 {[%emt 0:01:27]} 30. Reb1 {[%emt 0:01:16]} Bc7 {[%emt 0:00:39]} 31. Nh4 {[%emt 0:03:24]} Rf6 {[%emt 0:00:07]} 32. Nf5 {[%emt 0:00:07]} cxb5 {[%emt 0:00:51]} 33. cxb5 {[%emt 0:00:07]} Nd4 {[%emt 0:00:41]} 34. bxa6 {[%emt 0:00:26]} Qa8 {[%emt 0:00:16]} 35. Rb7 {[%emt 0:00:34]} Nxf5 {[%emt 0:00:21]} 36. exf5 {[%emt 0:01:12]} e4 {[%emt 0:00:12]} 37. Qb5 {[%emt 0:00:30]} Re5 {[%emt 0:01:07]} 38. Qd7 {[%emt 0:00:45]} 1-0

[Event "FIDE Chesscom Grand Swiss 2019"]
[Site "Douglas-Isle of Man"]
[Date "2019.10.13"]
[Round "4.11"]
[White "Motylev, Alexander"]
[Black "Erdos, Viktor"]
[Result "1/2-1/2"]
[ECO "C77"]
[WhiteElo "2651"]
[BlackElo "2604"]
[Annotator "RC"]
[PlyCount "61"]
[EventDate "2019.10.10"]
[EventType "swiss"]
[EventCountry "GBR"]
[SourceTitle "playchess.com"]
[Source "ChessBase"]
[SourceQuality "1"]
[TimeControl "40/6000+30:20/3000+30:900+30"]

1. e4 {[%emt 0:00:00]} e5 {[%emt 0:00:00]} 2. Nf3 {[%emt 0:00:00]} Nc6 {[%emt 0:00:00]} 3. Bb5 {[%emt 0:00:00]} a6 {[%emt 0:00:00]} 4. Ba4 {[%emt 0:00:00]} Nf6 {[%emt 0:00:00]} 5. Nc3 {[%emt 0:00:12]} Bc5 {[%emt 0:03:05]} 6. Bxc6 {[%emt 0:00:25]} dxc6 {[%emt 0:00:15]} 7. d3 {[%emt 0:00:05]} Be6 {[%emt 0:26:14]} 8. Qe2 {[%emt 0:04:45]} Qd6 {[%emt 0:08:27]} 9. Ng5 {[%emt 0:01:48]} Bg4 {[%emt 0:07:37]} 10. f3 {[%emt 0:00:55]} Bd7 {[%emt 0:00:41]} 11. f4 {[%emt 0:00:29]} Bg4 {[%emt 0:02:17]} 12. fxe5 {[%emt 0:21:16]} Qxe5 {[%emt 0:00:29]} 13. Nf3 {[%emt 0:00:04]} Qe7 {[%emt 0:07:04]} 14. Bg5 {[%emt 0:02:58]} h6 {[%emt 0:01:05]} 15. Bh4 {[%emt 0:00:46]} O-O-O {[%emt 0:19:55]} 16. O-O-O {[%emt 0:06:49]} g5 {[%emt 0:01:38]} 17. Bf2 {[%emt 0:12:47]} Nh5 {[%emt 0:01:42]} 18. h3 {[%emt 0:12:46]} Nf4 {[%emt 0:01:08]} 19. Qf1 {[%emt 0:02:32]} Be6 {[%emt 0:13:06]} 20. Kb1 {[%emt 0:03:42]} Kb8 {[%emt 0:01:01]} 21. Na4 {[%emt 0:08:53]} Bxf2 {[%emt 0:07:14]} 22. Qxf2 {[%emt 0:00:23]} f5 {[%emt 0:03:39]} 23. Rhe1 {[%emt 0:03:54]} fxe4 {[%emt 0:00:25]} 24. Rxe4 {[%emt 0:00:06]} Qf6 {[%emt 0:00:43]} 25. Nc5 {[%emt 0:06:15]} Bc8 {[%emt 0:00:05]} 26. Ne5 {[%emt 0:01:52]} Rhf8 {[%emt 0:00:54]} 27. Rde1 {[%emt 0:00:55]} b6 {[%emt 0:00:50]} 28. Nb3 {[%emt 0:02:42]} Bb7 {[%emt 0:02:04]} 29. g3 {[%emt 0:08:25]} Nd5 {[%emt 0:01:19]} 30. Qe2 {[%emt 0:01:53]} c5 {[%emt 0:00:28]} 31. a3 {[%emt 0:00:46]} 1/2-1/2

[Event "FIDE Chesscom Grand Swiss 2019"]
[Site "Douglas-Isle of Man"]
[Date "2019.10.13"]
[Round "4.12"]
[White "Chigaev, Maksim"]
[Black "Yilmaz, Mustafa"]
[Result "1/2-1/2"]
[ECO "E32"]
[WhiteElo "2644"]
[BlackElo "2595"]
[Annotator "RC"]
[PlyCount "64"]
[EventDate "2019.10.10"]
[EventType "swiss"]
[EventCountry "GBR"]
[SourceTitle "playchess.com"]
[Source "ChessBase"]
[SourceQuality "1"]
[TimeControl "40/6000+30:20/3000+30:900+30"]

1. d4 {[%emt 0:00:00]} Nf6 {[%emt 0:01:03]} 2. c4 {[%emt 0:00:00]} e6 {[%emt 0:00:13]} 3. Nc3 {[%emt 0:00:00]} Bb4 {[%emt 0:00:19]} 4. Qc2 {[%emt 0:00:00]} O-O {[%emt 0:00:42]} 5. e4 {[%emt 0:00:00]} d5 {[%emt 0:00:39]} 6. e5 {[%emt 0:00:32]} Ne4 {[%emt 0:00:23]} 7. Bd3 {[%emt 0:00:07]} c5 {[%emt 0:00:21]} 8. Nf3 {[%emt 0:00:06]} cxd4 {[%emt 0:00:39]} 9. Nxd4 {[%emt 0:00:08]} Nd7 {[%emt 0:00:03]} 10. Bf4 {[%emt 0:00:11]} Qh4 {[%emt 0:00:49]} 11. g3 {[%emt 0:00:07]} Qh5 {[%emt 0:00:05]} 12. h4 {[%emt 0:00:05]} Nxe5 {[%emt 0:02:26]} 13. Be2 {[%emt 0:00:47]} Ng4 {[%emt 0:00:31]} 14. Bxg4 {[%emt 0:01:24]} Qxg4 {[%emt 0:00:32]} 15. f3 {[%emt 0:00:08]} Qh5 {[%emt 0:00:03]} 16. g4 {[%emt 0:00:49]} Qg6 {[%emt 0:00:10]} 17. fxe4 {[%emt 0:00:06]} e5 {[%emt 0:00:40]} 18. Bxe5 {[%emt 0:00:10]} Bxg4 {[%emt 0:03:46]} 19. exd5 {[%emt 0:05:11]} Rae8 {[%emt 0:03:12]} 20. Qxg6 {[%emt 0:00:21]} fxg6 {[%emt 0:02:55]} 21. Ne6 {[%emt 0:20:56]} Bxe6 {[%emt 0:03:10]} 22. O-O-O {[%emt 0:00:23]} Bg4 {[%emt 0:10:07]} 23. Rde1 {[%emt 0:00:12]} Rc8 {[%emt 0:04:01]} 24. a3 {[%emt 0:20:12]} Bxc3 {[%emt 0:04:55]} 25. Bxc3 {[%emt 0:00:07]} Rxc4 {[%emt 0:00:08]} 26. Re7 {[%emt 0:00:05]} Rf7 {[%emt 0:00:09]} 27. Rhe1 {[%emt 0:02:07]} Bd7 {[%emt 0:15:54]} 28. d6 {[%emt 0:02:16]} Rcf4 {[%emt 0:05:27]} 29. Re8+ {[%emt 0:00:10]} Rf8 {[%emt 0:00:10]} 30. R8e7 {[%emt 0:00:05]} R8f7 {[%emt 0:00:04]} 31. Re8+ {[%emt 0:00:08]} Rf8 {[%emt 0:00:04]} 32. R8e7 {[%emt 0:00:05]} R8f7 {[%emt 0:00:05]} 1/2-1/2

[Event "FIDE Chesscom Grand Swiss 2019"]
[Site "Douglas-Isle of Man"]
[Date "2019.10.13"]
[Round "4.13"]
[White "Narayanan.S.L"]
[Black "Zvjaginsev, Vadim"]
[Result "1/2-1/2"]
[ECO "C11"]
[WhiteElo "2611"]
[BlackElo "2644"]
[Annotator "RC"]
[PlyCount "99"]
[EventDate "2019.10.10"]
[EventType "swiss"]
[EventCountry "GBR"]
[SourceTitle "playchess.com"]
[Source "ChessBase"]
[SourceQuality "1"]
[TimeControl "40/6000+30:20/3000+30:900+30"]

1. e4 {[%emt 0:00:00]} e6 {[%emt 0:00:00]} 2. d4 {[%emt 0:00:00]} d5 {[%emt 0:00:00]} 3. Nc3 {[%emt 0:00:00]} Nf6 {[%emt 0:00:02]} 4. e5 {[%emt 0:00:00]} Nfd7 {[%emt 0:00:07]} 5. f4 {[%emt 0:00:00]} c5 {[%emt 0:00:15]} 6. Nf3 {[%emt 0:00:02]} Nc6 {[%emt 0:00:10]} 7. Be3 {[%emt 0:00:07]} cxd4 {[%emt 0:01:07]} 8. Nxd4 {[%emt 0:00:08]} Bc5 {[%emt 0:00:15]} 9. Qd2 {[%emt 0:01:14]} a6 {[%emt 0:00:33]} 10. O-O-O {[%emt 0:02:29]} Nxd4 {[%emt 0:00:29]} 11. Bxd4 {[%emt 0:00:07]} Qc7 {[%emt 0:00:16]} 12. h4 {[%emt 0:07:42]} b5 {[%emt 0:01:08]} 13. h5 {[%emt 0:03:28]} Bxd4 {[%emt 0:10:10]} 14. Qxd4 {[%emt 0:00:07]} Qc5 {[%emt 0:00:09]} 15. Rh3 {[%emt 0:14:11]} Qxd4 {[%emt 0:12:14]} 16. Rxd4 {[%emt 0:00:17]} Nb8 {[%emt 0:05:02]} 17. Rg3 {[%emt 0:21:02]} Nc6 {[%emt 0:02:08]} 18. Rd2 {[%emt 0:02:18]} O-O {[%emt 0:13:35]} 19. Ne2 {[%emt 0:04:31]} f6 {[%emt 0:03:48]} 20. exf6 {[%emt 0:04:47]} Rxf6 {[%emt 0:00:06]} 21. Rc3 {[%emt 0:00:41]} Bd7 {[%emt 0:04:22]} 22. g3 {[%emt 0:01:46]} Be8 {[%emt 0:05:28]} 23. Bg2 {[%emt 0:03:50]} Kf8 {[%emt 0:07:51]} 24. g4 {[%emt 0:03:41]} Rd8 {[%emt 0:03:53]} 25. a3 {[%emt 0:02:30]} Rd6 {[%emt 0:04:10]} 26. Re3 {[%emt 0:03:02]} Rf7 {[%emt 0:05:13]} 27. b3 {[%emt 0:10:07]} Re7 {[%emt 0:04:55]} 28. Ng3 {[%emt 0:04:56]} Red7 {[%emt 0:01:24]} 29. Red3 {[%emt 0:00:44]} Ne7 {[%emt 0:02:30]} 30. Ne4 {[%emt 0:01:44]} Rc6 {[%emt 0:00:59]} 31. Ng5 {[%emt 0:01:47]} h6 {[%emt 0:00:56]} 32. Nf3 {[%emt 0:00:05]} Rcd6 {[%emt 0:00:59]} 33. Re2 {[%emt 0:02:57]} Nc6 {[%emt 0:01:17]} 34. Nh4 {[%emt 0:02:25]} Bf7 {[%emt 0:02:18]} 35. Kb2 {[%emt 0:04:58]} Ne7 {[%emt 0:04:51]} 36. Nf3 {[%emt 0:00:50]} Rc7 {[%emt 0:01:55]} 37. Ne5 {[%emt 0:01:19]} Be8 {[%emt 0:01:49]} 38. Rde3 {[%emt 0:00:28]} Bf7 {[%emt 0:03:22]} 39. Bh3 {[%emt 0:01:39]} d4 {[%emt 0:03:29]} 40. Rd3 {[%emt 0:01:05]} Rc3 {[%emt 0:01:41]} 41. Rxc3 {[%emt 0:54:14]} dxc3+ {[%emt 0:50:05]} 42. Kxc3 {[%emt 0:00:04]} Nd5+ {[%emt 0:00:10]} 43. Kb2 {[%emt 0:00:05]} Nxf4 {[%emt 0:00:29]} 44. Rf2 {[%emt 0:00:15]} Rd5 {[%emt 0:00:28]} 45. Rxf4 {[%emt 0:00:00]} Rxe5 {[%emt 0:00:00]} 46. Bf1 {[%emt 0:00:00]} Ke7 {[%emt 0:00:00]} 47. c4 {[%emt 0:00:00]} g6 {[%emt 0:00:00]} 48. cxb5 {[%emt 0:00:00]} axb5 {[%emt 0:00:00]} 49. hxg6 {[%emt 0:00:00]} Bxg6 {[%emt 0:00:00]} 50. a4 {[%emt 0:00:00]} 1/2-1/2

[Event "FIDE Chesscom Grand Swiss 2019"]
[Site "Douglas-Isle of Man"]
[Date "2019.10.13"]
[Round "4.14"]
[White "Abdusattorov, Nodirbek"]
[Black "Piorun, Kacper"]
[Result "1-0"]
[ECO "B15"]
[WhiteElo "2608"]
[BlackElo "2643"]
[Annotator "RC"]
[PlyCount "99"]
[EventDate "2019.10.10"]
[EventType "swiss"]
[EventCountry "GBR"]
[SourceTitle "playchess.com"]
[Source "ChessBase"]
[SourceQuality "1"]
[TimeControl "40/6000+30:20/3000+30:900+30"]

1. e4 {[%emt 0:00:00]} c6 {[%emt 0:00:00]} 2. d4 {[%emt 0:00:22]} d5 {[%emt 0:00:00]} 3. Nc3 {[%emt 0:00:06]} dxe4 {[%emt 0:00:00]} 4. Nxe4 {[%emt 0:00:07]} Nf6 {[%emt 0:00:00]} 5. Nxf6+ {[%emt 0:00:12]} exf6 {[%emt 0:00:00]} 6. Bc4 {[%emt 0:00:28]} Bd6 {[%emt 0:00:33]} 7. Qe2+ {[%emt 0:00:33]} Qe7 {[%emt 0:08:45]} 8. Qxe7+ {[%emt 0:00:45]} Kxe7 {[%emt 0:00:06]} 9. Ne2 {[%emt 0:00:21]} Be6 {[%emt 0:09:10]} 10. Bd3 {[%emt 0:00:27]} Nd7 {[%emt 0:01:58]} 11. Bf4 {[%emt 0:01:03]} Rhe8 {[%emt 0:03:26]} 12. O-O-O {[%emt 0:01:40]} Nb6 {[%emt 0:03:01]} 13. Rhe1 {[%emt 0:04:39]} Nd5 {[%emt 0:01:48]} 14. Bxd6+ {[%emt 0:03:30]} Kxd6 {[%emt 0:00:05]} 15. Be4 {[%emt 0:10:39]} h6 {[%emt 0:20:38]} 16. b3 {[%emt 0:13:50]} b5 {[%emt 0:14:22]} 17. Bxd5 {[%emt 0:03:39]} Bxd5 {[%emt 0:00:11]} 18. f3 {[%emt 0:01:46]} f5 {[%emt 0:09:05]} 19. Kd2 {[%emt 0:05:42]} c5 {[%emt 0:09:18]} 20. dxc5+ {[%emt 0:03:50]} Kxc5 {[%emt 0:00:03]} 21. Nf4 {[%emt 0:00:37]} g5 {[%emt 0:01:24]} 22. Nxd5 {[%emt 0:04:11]} Kxd5 {[%emt 0:00:02]} 23. Re3 {[%emt 0:13:55]} Rxe3 {[%emt 0:03:35]} 24. Kxe3+ {[%emt 0:00:09]} Kc6 {[%emt 0:00:05]} 25. Rd4 {[%emt 0:00:17]} f4+ {[%emt 0:03:23]} 26. Kd3 {[%emt 0:05:48]} a6 {[%emt 0:02:58]} 27. h4 {[%emt 0:08:28]} f5 {[%emt 0:01:29]} 28. h5 {[%emt 0:03:15]} Re8 {[%emt 0:04:49]} 29. Kd2 {[%emt 0:00:23]} Rg8 {[%emt 0:04:01]} 30. c3 {[%emt 0:01:44]} Kc5 {[%emt 0:04:25]} 31. Rd7 {[%emt 0:01:35]} g4 {[%emt 0:00:01]} 32. Rf7 {[%emt 0:01:13]} Rg5 {[%emt 0:01:02]} 33. fxg4 {[%emt 0:00:30]} Rxg4 {[%emt 0:01:07]} 34. Rxf5+ {[%emt 0:00:22]} Kd6 {[%emt 0:00:07]} 35. Rf6+ {[%emt 0:01:59]} Ke5 {[%emt 0:00:01]} 36. Rg6 {[%emt 0:00:42]} Rh4 {[%emt 0:01:38]} 37. Rxh6 {[%emt 0:05:40]} Rh2 {[%emt 0:00:04]} 38. Rxa6 {[%emt 0:01:01]} Rxg2+ {[%emt 0:00:20]} 39. Ke1 {[%emt 0:01:12]} Ke4 {[%emt 0:05:25]} 40. h6 {[%emt 0:01:03]} Rh2 {[%emt 0:00:45]} 41. a4 {[%emt 0:56:16]} bxa4 {[%emt 0:02:33]} 42. bxa4 {[%emt 0:00:00]} f3 {[%emt 0:08:05]} 43. Rf6 {[%emt 0:00:00]} Ke3 {[%emt 0:01:31]} 44. Re6+ {[%emt 0:00:00]} Kf4 {[%emt 0:00:03]} 45. a5 {[%emt 0:00:00]} Rh1+ {[%emt 0:03:53]} 46. Kf2 {[%emt 0:00:00]} Rh2+ {[%emt 0:00:04]} 47. Kg1 {[%emt 0:00:00]} Rg2+ {[%emt 0:09:35]} 48. Kf1 {[%emt 0:00:00]} Ra2 {[%emt 0:01:38]} 49. h7 {[%emt 0:00:00]} Rh2 {[%emt 0:00:35]} 50. Re7 {[%emt 0:00:00]} 1-0

[Event "FIDE Chesscom Grand Swiss 2019"]
[Site "Douglas-Isle of Man"]
[Date "2019.10.13"]
[Round "4.15"]
[White "Puranik, Abhimanyu"]
[Black "Nguyen, Ngoc Truong Son"]
[Result "1/2-1/2"]
[ECO "C42"]
[WhiteElo "2571"]
[BlackElo "2638"]
[Annotator "RC"]
[PlyCount "61"]
[EventDate "2019.10.10"]
[EventType "swiss"]
[EventCountry "GBR"]
[SourceTitle "playchess.com"]
[Source "ChessBase"]
[SourceQuality "1"]
[TimeControl "40/6000+30:20/3000+30:900+30"]

1. e4 {[%emt 0:00:00]} e5 {[%emt 0:00:00]} 2. Nf3 {[%emt 0:00:00]} Nf6 {[%emt 0:00:06]} 3. Nxe5 {[%emt 0:00:25]} d6 {[%emt 0:00:12]} 4. Nf3 {[%emt 0:00:04]} Nxe4 {[%emt 0:00:10]} 5. Nc3 {[%emt 0:00:17]} Nxc3 {[%emt 0:00:12]} 6. dxc3 {[%emt 0:00:04]} Be7 {[%emt 0:00:15]} 7. Be3 {[%emt 0:00:44]} Nc6 {[%emt 0:00:12]} 8. Bd3 {[%emt 0:05:08]} Be6 {[%emt 0:01:31]} 9. Nd4 {[%emt 0:08:13]} Nxd4 {[%emt 0:02:01]} 10. cxd4 {[%emt 0:00:17]} Qd7 {[%emt 0:01:52]} 11. c4 {[%emt 0:05:04]} Bf5 {[%emt 0:05:06]} 12. Be2 {[%emt 0:13:54]} O-O {[%emt 0:05:40]} 13. O-O {[%emt 0:02:03]} c6 {[%emt 0:03:21]} 14. Re1 {[%emt 0:15:30]} Rfe8 {[%emt 0:01:32]} 15. Bf3 {[%emt 0:08:42]} Bf6 {[%emt 0:02:02]} 16. Qd2 {[%emt 0:01:42]} Be4 {[%emt 0:11:03]} 17. Bxe4 {[%emt 0:00:38]} Rxe4 {[%emt 0:03:28]} 18. f3 {[%emt 0:00:12]} Re7 {[%emt 0:01:10]} 19. Bg5 {[%emt 0:01:43]} Bxg5 {[%emt 0:00:17]} 20. Qxg5 {[%emt 0:00:08]} Rae8 {[%emt 0:00:17]} 21. Kf2 {[%emt 0:13:22]} h6 {[%emt 0:03:55]} 22. Rxe7 {[%emt 0:03:59]} Rxe7 {[%emt 0:00:20]} 23. Qd2 {[%emt 0:00:25]} Qf5 {[%emt 0:07:28]} 24. Re1 {[%emt 0:01:32]} Kf8 {[%emt 0:03:01]} 25. Rxe7 {[%emt 0:05:53]} Kxe7 {[%emt 0:00:04]} 26. g4 {[%emt 0:03:34]} Qf6 {[%emt 0:04:25]} 27. Kg3 {[%emt 0:01:20]} Qe6 {[%emt 0:02:50]} 28. b3 {[%emt 0:02:19]} Kd7 {[%emt 0:02:40]} 29. h4 {[%emt 0:02:05]} b6 {[%emt 0:00:43]} 30. h5 {[%emt 0:01:35]} d5 {[%emt 0:02:40]} 31. Qd3 {[%emt 0:01:12]} 1/2-1/2